bitfinex/quotes_BTCUSD_20250719
["timestamp","ask_amount","ask_price","bid_price","bid_amount"]
[1752915425365,0.24696641,118150.0,118140.0,0.87375897]
[1752915425564,0.24696641,118150.0,118140.0,0.89068753]
[1752915426711,0.24696641,118150.0,118140.0,0.52989163]
[1752915426999,0.24696641,118150.0,118140.0,0.89068753]
[1752915427201,0.24696641,118150.0,118140.0,0.87528753]
[1752915427415,0.0861536,118150.0,118140.0,0.88375163]
[1752915427624,0.0861536,118150.0,118140.0,0.90025163]
[1752915427848,0.09461741,118150.0,118140.0,0.90025163]
[1752915428603,0.09461741,118150.0,118140.0,0.90025113]
[1752915429427,0.0861536,118150.0,118140.0,0.90025113]
[1752915431283,0.08615317,118150.0,118140.0,0.90025113]
[1752915431484,0.09461684,118150.0,118140.0,0.90025113]
[1752915431630,0.00144982,118150.0,118140.0,0.90025113]
[1752915431967,0.00144982,118150.0,118140.0,1.09518993]
[1752915432177,0.00144982,118150.0,118140.0,0.91479198]
[1752915433913,0.00044982,118150.0,118140.0,0.91479198]
[1752915434828,0.00044982,118150.0,118140.0,1.09518993]
[1752915437776,0.00891306,118150.0,118140.0,1.09518993]
[1752915437973,0.00891299,118150.0,118140.0,1.09518993]
[1752915438164,0.00044982,118150.0,118140.0,1.09518993]
[1752915438476,0.00044982,118150.0,118140.0,0.91479198]
[1752915438678,0.00891299,118150.0,118140.0,0.91479198]
[1752915439744,0.00044982,118150.0,118140.0,0.91479198]
[1752915443185,0.00891299,118150.0,118140.0,0.91479198]
[1752915444351,0.00044982,118150.0,118140.0,0.91479198]
[1752915446599,0.00044982,118150.0,118140.0,1.09518993]
[1752915448541,0.00891306,118150.0,118140.0,1.09518993]
[1752915448747,0.00044982,118150.0,118140.0,1.09518993]
[1752915448950,0.00891299,118150.0,118140.0,1.09518993]
[1752915449545,0.00044982,118150.0,118140.0,1.09518993]
[1752915450820,0.00044982,118150.0,118140.0,0.91479198]
[1752915452451,0.00044982,118150.0,118140.0,0.89829198]
[1752915452884,0.0258404,118150.0,118140.0,0.89829198]
[1752915453103,0.26289325,118150.0,118140.0,0.54728073]
[1752915453312,0.11081691,118150.0,118140.0,0.85984681]
[1752915453527,0.11081677,118150.0,118140.0,0.85984681]
[1752915453741,0.11928044,118150.0,118140.0,0.85984681]
[1752915453936,0.11928044,118150.0,118140.0,0.85138278]
[1752915454314,0.11928044,118150.0,118140.0,0.85996681]
[1752915454315,0.11081677,118150.0,118140.0,0.85996681]
[1752915454527,0.12774418,118150.0,118140.0,0.85996681]
[1752915454736,0.12774468,118150.0,118140.0,0.85996681]
[1752915456964,0.11928115,118150.0,118140.0,0.84295868]
[1752915457169,0.28009389,118150.0,118140.0,0.85142285]
[1752915457963,0.28009389,118150.0,118140.0,0.84295868]
[1752915458174,0.28009389,118150.0,118140.0,0.85142285]
[1752915458384,0.28009389,118150.0,118140.0,0.85988695]
[1752915458585,0.01937694,118150.0,118140.0,0.85988695]
[1752915458798,0.01737694,118150.0,118140.0,0.88475098]
[1752915458940,0.01737651,118150.0,118140.0,0.88475098]
[1752915459533,0.02584004,118150.0,118140.0,0.88475098]
[1752915460301,0.00891306,118150.0,118140.0,0.88475098]
[1752915460720,0.01737644,118150.0,118140.0,0.88475098]
[1752915461001,0.01737644,118150.0,118140.0,0.75427098]
[1752915461215,0.00891306,118150.0,118140.0,0.88467098]
[1752915461426,0.01737623,118150.0,118140.0,0.88467098]
[1752915461852,0.02583961,118150.0,118140.0,0.88467098]
[1752915462360,0.01737623,118150.0,118140.0,0.88467098]
[1752915462778,0.01737623,118150.0,118140.0,0.52387508]
[1752915462990,0.01737623,118150.0,118140.0,0.88467098]
[1752915462991,0.03430328,118150.0,118140.0,0.88467098]
[1752915463202,0.03430321,118150.0,118140.0,0.88467098]
[1752915463407,0.02583968,118150.0,118140.0,0.88467098]
[1752915463621,0.03430321,118150.0,118140.0,0.88467098]
[1752915464498,0.21204386,118150.0,118140.0,0.74580695]
[1752915464685,0.21311717,118150.0,118140.0,0.82935444]
[1752915464828,0.20465364,118150.0,118140.0,0.52694088]
[1752915465038,0.28270648,118150.0,118140.0,0.29084341]
[1752915465445,0.28270648,118150.0,118140.0,0.47124136]
[1752915466065,0.28270648,118150.0,118140.0,0.47120136]
[1752915467379,0.28270648,118150.0,118140.0,0.47966589]
[1752915467592,0.28270648,118150.0,118140.0,0.16032341]
[1752915467812,0.28270648,118150.0,118140.0,0.47120136]
[1752915468439,0.28270648,118150.0,118140.0,0.34072136]
[1752915468652,0.28270648,118150.0,118140.0,0.47116136]
[1752915470403,0.28270648,118150.0,118140.0,0.47962589]
[1752915470632,0.27956648,118150.0,118140.0,0.47962589]
[1752915471119,0.21178997,118150.0,118140.0,0.64891656]
[1752915471320,0.19618997,118150.0,118140.0,0.83777897]
[1752915471554,0.19618997,118150.0,118140.0,0.83769897]
[1752915471836,0.19618997,118150.0,118140.0,0.84616328]
[1752915473132,0.19618997,118150.0,118140.0,0.84830328]
[1752915474202,0.19618997,118150.0,118140.0,0.83983897]
[1752915474372,0.00044982,118150.0,118140.0,1.05594519]
[1752915474613,0.00044982,118150.0,118140.0,0.89174724]
[1752915481473,0.00044982,118150.0,118140.0,1.08668604]
[1752915481697,0.00044982,118150.0,118140.0,1.62787989]
[1752915481924,1e-08,118150.0,118140.0,4.82106089]
[1752915482147,1e-08,118150.0,118140.0,4.84138854]
[1752915482376,1e-08,118150.0,118140.0,4.95476689]
[1752915483028,1e-08,118150.0,118140.0,4.35810341]
[1752915484779,1e-08,118150.0,118140.0,4.36210341]
[1752915490826,0.0004,118160.0,118150.0,0.58466692]
[1752915491224,0.0004,118160.0,118150.0,5.85615199]
[1752915491782,0.0004,118160.0,118150.0,5.80794299]
[1752915491995,0.0004,118160.0,118150.0,5.81094299]
[1752915492904,0.0004,118160.0,118150.0,5.81494299]
[1752915494980,0.0004,118160.0,118150.0,4.93111599]
[1752915495442,0.0004,118160.0,118150.0,1.16611788]
[1752915495669,0.0004,118160.0,118150.0,1.29619788]
[1752915496310,0.0004,118160.0,118150.0,1.07773388]
[1752915496528,0.0004,118160.0,118150.0,6.07773388]
[1752915500056,0.0004,118160.0,118150.0,5.94761388]
[1752915500258,0.0004,118160.0,118150.0,6.07761388]
[1752915500475,0.0004,118160.0,118150.0,6.31797599]
[1752915505851,0.0004,118160.0,118150.0,1.31797599]
[1752915506061,0.0004,118160.0,118150.0,6.31797599]
[1752915506787,0.0004,118160.0,118150.0,1.31797599]
[1752915507089,0.0004,118160.0,118150.0,6.31797599]
[1752915508640,0.0004,118160.0,118150.0,6.18797599]
[1752915508850,0.0004,118160.0,118150.0,6.31789599]
[1752915511011,0.0004,118160.0,118150.0,6.19778507]
[1752915511924,0.0004,118160.0,118150.0,1.19778507]
[1752915512147,0.0004,118160.0,118150.0,6.19778507]
[1752915514132,0.0004,118160.0,118150.0,1.19778507]
[1752915514361,0.0004,118160.0,118150.0,6.19778507]
[1752915515188,0.0004,118160.0,118150.0,6.18158507]
[1752915515626,0.0004,118160.0,118150.0,6.38458507]
[1752915515841,0.0004,118160.0,118150.0,6.25466507]
[1752915516053,0.0004,118160.0,118150.0,6.38458507]
[1752915516593,0.0004,118160.0,118150.0,6.25466507]
[1752915516841,0.02990245,118160.0,118150.0,0.85743927]
[1752915517069,0.04510245,118160.0,118150.0,0.85743927]
[1752915517292,0.04192245,118160.0,118150.0,0.85743927]
[1752915517741,0.05038497,118160.0,118150.0,0.85743927]
[1752915518441,0.01826,118160.0,118150.0,0.85743927]
[1752915518837,0.02672259,118160.0,118150.0,0.85743927]
[1752915519135,0.02672259,118160.0,118150.0,0.91761683]
[1752915519340,0.02672252,118160.0,118150.0,0.91761683]
[1752915519563,0.06202793,118160.0,118150.0,0.78769683]
[1752915519794,0.07049081,118160.0,118150.0,0.78769683]
[1752915520021,0.06202793,118160.0,118150.0,0.91761683]
[1752915520485,0.07049088,118160.0,118150.0,0.91761683]
[1752915520930,0.07049081,118160.0,118150.0,0.91761683]
[1752915521320,0.06202793,118160.0,118150.0,0.91761683]
[1752915521698,0.23975325,118160.0,118150.0,0.76469267]
[1752915521905,0.22282784,118160.0,118150.0,0.51574493]
[1752915522132,0.22282784,118160.0,118150.0,0.90307626]
[1752915522345,0.21436496,118160.0,118150.0,0.46792485]
[1752915523097,0.21436496,118160.0,118150.0,0.33800485]
[1752915523296,0.21436496,118160.0,118150.0,0.46792485]
[1752915523755,0.21436496,118160.0,118150.0,0.46492485]
[1752915524142,0.21436496,118160.0,118150.0,0.46092485]
[1752915524400,0.21436496,118160.0,118150.0,0.46392485]
[1752915524802,0.45484917,118160.0,118150.0,0.33400485]
[1752915525052,0.45484917,118160.0,118150.0,0.46392485]
[1752915525529,0.21436496,118160.0,118150.0,0.46392485]
[1752915525711,0.21436496,118160.0,118150.0,0.46092485]
[1752915525940,0.45484917,118160.0,118150.0,0.46092485]
[1752915526141,0.21436496,118160.0,118150.0,0.46192485]
[1752915527692,0.21436496,118160.0,118150.0,0.46392485]
[1752915528160,0.21436496,118160.0,118150.0,0.46192485]
[1752915528400,0.21436496,118160.0,118150.0,0.8716854]
[1752915528607,0.20590201,118160.0,118150.0,0.46192485]
[1752915528753,0.20590201,118160.0,118150.0,0.33200485]
[1752915528754,0.44638622,118160.0,118150.0,0.33200485]
[1752915528963,0.44638622,118160.0,118150.0,0.46292485]
[1752915529622,0.20590201,118160.0,118150.0,0.46292485]
[1752915531813,0.20590201,118160.0,118150.0,0.33300485]
[1752915532020,0.20590201,118160.0,118150.0,0.46292485]
[1752915532449,0.44638622,118160.0,118150.0,0.46292485]
[1752915534908,0.20590201,118160.0,118150.0,0.46292485]
[1752915535441,0.44638622,118160.0,118150.0,0.33300485]
[1752915535649,0.44638622,118160.0,118150.0,0.46292485]
[1752915536922,0.44638622,118160.0,118150.0,0.33300485]
[1752915537150,0.44638622,118160.0,118150.0,0.46292485]
[1752915541425,0.20590201,118160.0,118150.0,0.46292485]
[1752915541647,0.44638622,118160.0,118150.0,0.46292485]
[1752915542372,0.44610695,118160.0,118150.0,0.46292485]
[1752915544273,0.44610695,118160.0,118150.0,0.25992485]
[1752915544473,0.20562274,118160.0,118150.0,0.25992485]
[1752915546595,0.44610695,118160.0,118150.0,0.13000485]
[1752915546830,0.44610695,118160.0,118150.0,0.25992485]
[1752915549605,0.20562274,118160.0,118150.0,0.13000485]
[1752915549821,0.44610695,118160.0,118150.0,0.21743028]
[1752915551446,0.44610695,118160.0,118150.0,0.08751028]
[1752915551680,1.02659116,118160.0,118150.0,0.08751028]
[1752915551888,0.78610695,118160.0,118150.0,0.21743028]
[1752915552899,0.78610695,118160.0,118150.0,0.21643028]
[1752915553106,0.54562274,118160.0,118150.0,0.23707331]
[1752915553299,0.90660154,118160.0,118150.0,0.23707331]
[1752915555043,0.78626837,118160.0,118150.0,0.23707331]
[1752915575090,0.90659904,118160.0,118150.0,0.23707331]
[1752915576513,0.90659904,118160.0,118150.0,0.10715331]
[1752915576672,0.90659904,118160.0,118150.0,0.21535028]
[1752915579424,0.90659904,118160.0,118150.0,0.08551028]
[1752915579625,0.90659904,118160.0,118150.0,0.21535028]
[1752915580505,0.18621923,118140.0,118130.0,0.01933]
[1752915580753,0.18621923,118140.0,118130.0,0.2367601]
[1752915580754,0.36670738,118140.0,118130.0,0.2367601]
[1752915580993,0.36670738,118140.0,118130.0,0.28263469]
[1752915581782,0.37533171,118140.0,118130.0,0.28363469]
[1752915582426,0.37533171,118140.0,118130.0,0.28463469]
[1752915582644,0.37533171,118140.0,118130.0,0.15479469]
[1752915582893,0.55793986,118140.0,118130.0,0.26327469]
[1752915583100,0.57303986,118140.0,118130.0,0.2174001]
[1752915584867,0.55793986,118140.0,118130.0,0.2174001]
[1752915585814,0.57303986,118140.0,118130.0,0.2174001]
[1752915586044,0.91603986,118140.0,118130.0,0.2174001]
[1752915586529,0.91303986,118140.0,118130.0,0.2174001]
[1752915586774,0.91303986,118140.0,118130.0,0.24099911]
[1752915590400,0.91303986,118140.0,118130.0,0.23999911]
[1752915591318,0.91603986,118140.0,118130.0,0.11015911]
[1752915591496,0.91603986,118140.0,118130.0,0.0865601]
[1752915592201,0.91603986,118140.0,118130.0,0.00104982]
[1752915592592,0.93213986,118140.0,118130.0,0.13084982]
[1752915593832,0.91603986,118140.0,118130.0,0.13084982]
[1752915594389,0.91703986,118140.0,118130.0,0.13084982]
[1752915594733,0.91703986,118140.0,118130.0,0.12984982]
[1752915594939,1.04783986,118140.0,118130.0,4.982e-05]
[1752915599136,0.68686356,118140.0,118130.0,4.982e-05]
[1752915599341,1.04783986,118140.0,118130.0,4.982e-05]
[1752915599787,0.68686356,118140.0,118130.0,4.982e-05]
[1752915599989,1.04783986,118140.0,118130.0,4.982e-05]
[1752915600783,0.68686356,118140.0,118130.0,4.982e-05]
[1752915601000,1.04783986,118140.0,118130.0,4.982e-05]
[1752915601826,0.53684356,118140.0,118130.0,0.1063401]
[1752915602039,0.53684356,118140.0,118130.0,0.14958293]
[1752915602040,0.84713171,118140.0,118130.0,0.14958293]
[1752915602239,0.84713171,118140.0,118130.0,0.16538293]
[1752915602458,0.71733171,118140.0,118130.0,0.16538293]
[1752915602608,0.71733171,118140.0,118130.0,0.14958293]
[1752915603191,0.71733171,118140.0,118130.0,0.16538293]
[1752915603586,0.71733171,118140.0,118130.0,0.14958293]
[1752915605104,0.89781986,118140.0,118130.0,0.14958293]
[1752915605972,0.89980986,118140.0,118130.0,0.14958293]
[1752915614197,0.89980986,118140.0,118130.0,0.14664293]
[1752915614785,0.91500986,118140.0,118130.0,0.12880293]
[1752915615014,0.91500986,118140.0,118130.0,0.2152801]
[1752915615224,0.89980986,118140.0,118130.0,0.2152801]
[1752915615640,0.89980986,118140.0,118130.0,0.2354601]
[1752915616171,0.89980986,118140.0,118130.0,0.2325201]
[1752915616817,0.89980986,118140.0,118130.0,0.2354601]
[1752915617016,0.89980986,118140.0,118130.0,0.26057611]
[1752915622992,0.89980986,118140.0,118130.0,0.13085611]
[1752915623193,0.89980986,118140.0,118130.0,0.2354601]
[1752915625570,0.89980986,118140.0,118130.0,0.2304801]
[1752915626036,0.53883356,118140.0,118130.0,0.2304801]
[1752915626254,0.89980986,118140.0,118130.0,0.1007601]
[1752915626734,0.89980986,118140.0,118130.0,0.2304401]
[1752915626942,0.89980986,118140.0,118130.0,0.25534811]
[1752915629094,0.89980986,118140.0,118130.0,0.12566811]
[1752915629294,0.89980986,118140.0,118130.0,0.2304401]
[1752915632259,0.89980986,118140.0,118130.0,0.1007601]
[1752915632568,0.89980986,118140.0,118130.0,0.2304401]
[1752915632780,0.89980986,118140.0,118130.0,0.1007601]
[1752915632990,0.89980986,118140.0,118130.0,0.2304401]
[1752915633204,0.89980986,118140.0,118130.0,0.25534811]
[1752915635773,0.89980986,118140.0,118130.0,0.25530811]
[1752915635969,0.89880986,118140.0,118130.0,0.25530811]
[1752915637302,0.89018553,118140.0,118130.0,0.12566811]
[1752915637620,0.89018553,118140.0,118130.0,0.2304001]
[1752915638168,0.89018553,118140.0,118130.0,0.1007601]
[1752915638371,0.90882553,118140.0,118130.0,0.12968982]
[1752915640444,0.54784923,118140.0,118130.0,0.12968982]
[1752915640693,0.90882553,118140.0,118130.0,0.12968982]
[1752915641105,0.91749201,118140.0,118130.0,0.12968982]
[1752915642506,1.04713201,118140.0,118130.0,4.982e-05]
[1752915642926,1.06233201,118140.0,118130.0,4.982e-05]
[1752915644923,1.08774601,118140.0,118130.0,4.982e-05]
[1752915649343,1.58774601,118140.0,118130.0,4.982e-05]
[1752915651448,1.57254601,118140.0,118130.0,4.982e-05]
[1752915651821,1.58794601,118140.0,118130.0,4.982e-05]
[1752915653026,1.5879037,118140.0,118130.0,4.982e-05]
[1752915653704,1.5725037,118140.0,118130.0,4.982e-05]
[1752915655689,1.5724637,118140.0,118130.0,4.982e-05]
[1752915659498,1.5470497,118140.0,118130.0,4.982e-05]
[1752915667934,1.54671281,118140.0,118130.0,4.982e-05]
[1752915668637,1.18573651,118140.0,118130.0,4.982e-05]
[1752915668859,1.54671281,118140.0,118130.0,4.982e-05]
[1752915676651,1.53131281,118140.0,118130.0,4.982e-05]
[1752915677090,1.54721281,118140.0,118130.0,4.982e-05]
[1752915681861,1.53131281,118140.0,118130.0,4.982e-05]
[1752915683676,1.18623651,118140.0,118130.0,4.982e-05]
[1752915683894,1.54721281,118140.0,118130.0,4.982e-05]
[1752915684104,1.53131281,118140.0,118130.0,0.01624982]
[1752915684317,1.52707281,118140.0,118130.0,0.01624982]
[1752915684527,1.52907281,118140.0,118130.0,0.01624982]
[1752915684730,1.52807281,118140.0,118130.0,0.01624982]
[1752915685157,1.52907281,118140.0,118130.0,0.01624982]
[1752915685788,1.58366153,118140.0,118130.0,4.982e-05]
[1752915685995,1.54770281,118140.0,118130.0,4.982e-05]
[1752915687892,1.74339096,118140.0,118130.0,4.982e-05]
[1752915688313,0.54722705,118120.0,118110.0,0.031]
[1752915688513,0.31781075,118120.0,118110.0,0.03315]
[1752915688726,0.67878705,118120.0,118110.0,0.03614]
[1752915689648,0.67878705,118120.0,118110.0,0.03814]
[1752915690032,0.67878705,118120.0,118110.0,0.02304]
[1752915690482,0.67878705,118120.0,118110.0,0.02204]
[1752915691390,0.67978705,118120.0,118110.0,0.02204]
[1752915691594,0.55026705,118120.0,118110.0,0.02204]
[1752915691815,0.67978705,118120.0,118110.0,0.02104]
[1752915692051,0.67978705,118120.0,118110.0,0.03714]
[1752915694322,0.67824948,118120.0,118110.0,0.03714]
[1752915702342,0.67824948,118120.0,118110.0,0.02104]
[1752915702559,0.31727318,118120.0,118110.0,0.02104]
[1752915702770,0.67824948,118120.0,118110.0,0.02104]
[1752915706523,0.70377231,118120.0,118110.0,0.02104]
[1752915707351,0.71238821,118120.0,118110.0,0.02104]
[1752915709356,0.34941191,118120.0,118110.0,0.12255028]
[1752915709582,0.52990006,118120.0,118110.0,0.16978883]
[1752915709809,0.19432908,118120.0,118110.0,0.35027698]
[1752915710027,0.0096159,118120.0,118110.0,0.85505798]
[1752915710232,0.001,118120.0,118110.0,0.85505798]
[1752915710656,0.00946539,118120.0,118110.0,0.85505798]
[1752915710870,0.01793085,118120.0,118110.0,0.85505798]
[1752915711549,0.03486235,118120.0,118110.0,0.85505798]
[1752915711754,0.02639653,118120.0,118110.0,0.85505798]
[1752915711957,0.03486228,118120.0,118110.0,0.85505798]
[1752915712613,0.03386228,118120.0,118110.0,0.85605798]
[1752915713002,0.03386228,118120.0,118110.0,0.85805798]
[1752915713220,0.02539653,118120.0,118110.0,0.85805798]
[1752915713643,0.03386228,118120.0,118110.0,0.85805798]
[1752915713849,0.01693085,118120.0,118110.0,0.85805798]
[1752915714307,0.03386213,118120.0,118110.0,0.85805798]
[1752915714721,0.04232795,118120.0,118110.0,0.85805798]
[1752915715162,0.04232845,118120.0,118110.0,0.85805798]
[1752915715582,0.03386299,118120.0,118110.0,0.85805798]
[1752915715787,0.03386342,118120.0,118110.0,0.85805805]
[1752915716025,0.02539746,118120.0,118110.0,0.86652423]
[1752915716689,0.03386342,118120.0,118110.0,0.86652423]
[1752915717561,0.03386342,118120.0,118110.0,0.85805805]
[1752915718735,0.18625118,118120.0,118110.0,0.35327698]
[1752915718945,0.18625118,118120.0,118110.0,0.48283698]
[1752915719765,0.18625118,118120.0,118110.0,0.49130366]
[1752915720189,0.18625118,118120.0,118110.0,0.49977027]
[1752915720638,0.18625118,118120.0,118110.0,0.37021027]
[1752915720863,0.17778529,118120.0,118110.0,0.35327698]
[1752915721094,0.17778529,118120.0,118110.0,0.17278883]
[1752915721328,0.36038344,118120.0,118110.0,0.15678883]
[1752915721779,0.17989529,118120.0,118110.0,0.28642883]
[1752915721999,0.17989529,118120.0,118110.0,0.15578883]
[1752915722209,0.17989529,118120.0,118110.0,0.23619028]
[1752915722417,0.17989529,118120.0,118110.0,0.23819028]
[1752915724572,0.17989529,118120.0,118110.0,0.10855028]
[1752915724724,0.17989529,118120.0,118110.0,0.23831028]
[1752915726667,0.17778529,118120.0,118110.0,0.23831028]
[1752915726897,0.17778529,118120.0,118110.0,0.26538478]
[1752915727164,0.17778529,118120.0,118110.0,0.28068478]
[1752915727580,0.17778529,118120.0,118110.0,0.28064478]
[1752915728033,0.17778529,118120.0,118110.0,0.15092478]
[1752915728235,0.17778529,118120.0,118110.0,0.28064478]
[1752915729087,0.17988529,118120.0,118110.0,0.26534478]
[1752915729295,0.17988529,118120.0,118110.0,0.26235478]
[1752915729963,0.17988529,118120.0,118110.0,0.26556478]
[1752915731622,0.17988529,118120.0,118110.0,0.26560478]
[1752915731831,0.17988529,118120.0,118110.0,0.13584478]
[1752915732053,0.17988529,118120.0,118110.0,0.26560478]
[1752915732244,0.17778529,118120.0,118110.0,0.26560478]
[1752915733630,0.17988529,118120.0,118110.0,0.26560478]
[1752915735088,0.17988529,118120.0,118110.0,0.13584478]
[1752915735301,0.17988529,118120.0,118110.0,0.26560478]
[1752915735906,0.79511362,118120.0,118110.0,0.1318]
[1752915736419,0.79511362,118120.0,118110.0,0.002]
[1752915736796,0.79511362,118120.0,118110.0,0.1308]
[1752915737273,0.79511362,118120.0,118110.0,0.001]
[1752915737500,0.79511362,118120.0,118110.0,0.13076]
[1752915737963,0.79511362,118120.0,118110.0,0.12976]
[1752915738412,0.79611362,118120.0,118110.0,0.12976]
[1752915741562,0.78011362,118120.0,118110.0,0.12976]
[1752915746565,0.17780021,118110.0,118100.0,0.02891]
[1752915746794,0.17780021,118110.0,118100.0,0.25054128]
[1752915748132,0.17780021,118110.0,118100.0,0.25154128]
[1752915748559,0.17780021,118110.0,118100.0,0.26844128]
[1752915753277,0.17780021,118110.0,118100.0,0.44903398]
[1752915755199,0.17780021,118110.0,118100.0,0.26844128]
[1752915756589,0.18626667,118110.0,118100.0,0.26844128]
[1752915756777,0.18626667,118110.0,118100.0,0.51767001]
[1752915756923,0.18626667,118110.0,118100.0,0.50920261]
[1752915757295,0.18626667,118110.0,118100.0,0.26844128]
[1752915757511,0.18626667,118110.0,118100.0,0.51767001]
[1752915757914,0.18626667,118110.0,118100.0,0.27690868]
[1752915758149,0.18626667,118110.0,118100.0,0.51767001]
[1752915758693,0.18626667,118110.0,118100.0,0.50920261]
[1752915759900,0.18626667,118110.0,118100.0,0.68701794]
[1752915760124,0.18626667,118110.0,118100.0,0.69548512]
[1752915760323,0.17780021,118110.0,118100.0,0.67855062]
[1752915760737,0.17780021,118110.0,118100.0,0.54895062]
[1752915760883,0.17780021,118110.0,118100.0,0.67851062]
[1752915761661,0.17780021,118110.0,118100.0,0.68697794]
[1752915761864,0.17780021,118110.0,118100.0,0.50916261]
[1752915762530,0.17780021,118110.0,118100.0,0.26840128]
[1752915764004,0.17780021,118110.0,118100.0,0.50916261]
[1752915764808,0.17780021,118110.0,118100.0,0.26840128]
[1752915765026,0.17780021,118110.0,118100.0,0.50916261]
[1752915765225,0.17780021,118110.0,118100.0,0.51763001]
[1752915767032,0.17780021,118110.0,118100.0,0.38807001]
[1752915767322,0.17780021,118110.0,118100.0,0.51763001]
[1752915768834,0.17780021,118110.0,118100.0,0.69544534]
[1752915771034,0.01693286,118110.0,118100.0,0.72084659]
[1752915771237,0.20319982,118110.0,118100.0,0.47161837]
[1752915771445,0.20319982,118110.0,118100.0,0.7123797]
[1752915771649,0.20319982,118110.0,118100.0,0.72084674]
[1752915772287,0.20319982,118110.0,118100.0,0.72084631]
[1752915772437,0.02539947,118110.0,118100.0,0.72084631]
[1752915772634,0.02539947,118110.0,118100.0,0.72084588]
[1752915772855,0.02539947,118110.0,118100.0,0.71237899]
[1752915772856,0.03386615,118110.0,118100.0,0.71237899]
[1752915773264,0.02539947,118110.0,118100.0,0.72084588]
[1752915774083,0.03386615,118110.0,118100.0,0.70391202]
[1752915774869,0.20319982,118110.0,118100.0,0.70391202]
[1752915775101,0.1947335,118110.0,118100.0,0.8073002]
[1752915775230,0.1947335,118110.0,118100.0,0.81576731]
[1752915776795,0.18626696,118110.0,118100.0,0.8073002]
[1752915776951,0.17780035,118110.0,118100.0,0.8073002]
[1752915778771,0.17780035,118110.0,118100.0,0.81576738]
[1752915778956,0.17780035,118110.0,118100.0,0.68620738]
[1752915779135,0.17780035,118110.0,118100.0,0.81572738]
[1752915780190,0.01693314,118110.0,118100.0,0.81572738]
[1752915780401,0.02539874,118110.0,118100.0,0.83266138]
[1752915780611,0.18625111,118120.0,118110.0,0.20256681]
[1752915780837,0.17778529,118120.0,118110.0,0.37009173]
[1752915781043,0.17778529,118120.0,118110.0,0.53450495]
[1752915781253,0.17778501,118120.0,118110.0,0.70383862]
[1752915781463,0.17778501,118120.0,118110.0,0.71230508]
[1752915782200,0.17878501,118120.0,118110.0,0.72077147]
[1752915782612,0.001,118120.0,118110.0,0.72923765]
[1752915783885,0.00946546,118120.0,118110.0,0.72923765]
[1752915784090,0.00946532,118120.0,118110.0,0.72923765]
[1752915784293,0.01793071,118120.0,118110.0,0.72923765]
[1752915785122,0.02639624,118120.0,118110.0,0.72923765]
[1752915785328,0.01793071,118120.0,118110.0,0.72923765]
[1752915785674,0.02639624,118120.0,118110.0,0.72923765]
[1752915786088,0.01793071,118120.0,118110.0,0.72923765]
[1752915786334,0.00946532,118120.0,118110.0,0.72923765]
[1752915786484,0.01793071,118120.0,118110.0,0.72923765]
[1752915790269,0.02639624,118120.0,118110.0,0.72923765]
[1752915792537,0.01793071,118120.0,118110.0,0.72923765]
[1752915793604,0.001,118120.0,118110.0,0.72923765]
[1752915793825,0.00946532,118120.0,118110.0,0.72923765]
[1752915794468,0.01793078,118120.0,118110.0,0.72923765]
[1752915795000,0.00946532,118120.0,118110.0,0.72923765]
[1752915796141,0.01793078,118120.0,118110.0,0.72923765]
[1752915796332,0.01793071,118120.0,118110.0,0.72923765]
[1752915796931,0.00946532,118120.0,118110.0,0.72923765]
[1752915798941,0.01793078,118120.0,118110.0,0.72923765]
[1752915799335,0.00946532,118120.0,118110.0,0.72923765]
[1752915799665,0.001,118120.0,118110.0,0.72923765]
[1752915801370,0.00946532,118120.0,118110.0,0.72923765]
[1752915801694,0.001,118120.0,118110.0,0.72923765]
[1752915801918,0.00946539,118120.0,118110.0,0.72923765]
[1752915802057,0.00946532,118120.0,118110.0,0.72923765]
[1752915803253,0.001,118120.0,118110.0,0.72923765]
[1752915803804,0.001,118120.0,118110.0,0.90977948]
[1752915805810,0.0084646,118130.0,118120.0,0.21855047]
[1752915805935,0.0084646,118130.0,118120.0,0.88252403]
[1752915806160,0.01697794,118140.0,118130.0,0.1947001]
[1752915806383,0.02544233,118140.0,118130.0,0.60354739]
[1752915807032,0.22092753,118140.0,118130.0,0.57544236]
[1752915807271,0.21246357,118140.0,118130.0,0.58390746]
[1752915807480,0.22085808,118140.0,118130.0,0.66966708]
[1752915807707,0.22185808,118140.0,118130.0,0.66966708]
[1752915808427,0.21339391,118140.0,118130.0,0.66966708]
[1752915809104,0.21339391,118140.0,118130.0,0.67270708]
[1752915809342,0.21339391,118140.0,118130.0,0.68117211]
[1752915809588,0.19769391,118140.0,118130.0,0.68117211]
[1752915809746,0.19769391,118140.0,118130.0,0.49216525]
[1752915809914,0.19769391,118140.0,118130.0,0.67270708]
[1752915810368,0.22052952,118140.0,118130.0,0.65055673]
[1752915810775,0.21206499,118140.0,118130.0,0.4700149]
[1752915811011,0.19646499,118140.0,118130.0,0.65902198]
[1752915811837,0.19646499,118140.0,118130.0,0.47848015]
[1752915812070,0.19646499,118140.0,118130.0,0.4700149]
[1752915812490,0.19646499,118140.0,118130.0,0.47848015]
[1752915812908,0.19646499,118140.0,118130.0,0.65902198]
[1752915813518,0.19646499,118140.0,118130.0,0.65055673]
[1752915814172,0.19646499,118140.0,118130.0,0.65902198]
[1752915814548,0.19646499,118140.0,118130.0,0.67246715]
[1752915814759,0.01993871,118140.0,118130.0,0.68093225]
[1752915814982,0.02637288,118140.0,118130.0,0.7130621]
[1752915815190,0.02637245,118140.0,118130.0,0.71306195]
[1752915815424,0.02637245,118140.0,118130.0,0.71306203]
[1752915815626,0.02637245,118140.0,118130.0,0.71306152]
[1752915816204,0.03483684,118140.0,118130.0,0.70459685]
[1752915816407,0.03483676,118140.0,118130.0,0.71306167]
[1752915816610,0.02637245,118140.0,118130.0,0.71306124]
[1752915817215,0.04330129,118140.0,118130.0,0.49866]
[1752915817476,0.04330129,118140.0,118130.0,0.68766686]
[1752915817842,0.02637245,118140.0,118130.0,0.68766686]
[1752915818046,0.02637245,118140.0,118130.0,0.69613182]
[1752915818363,0.02637245,118140.0,118130.0,0.70459656]
[1752915818721,0.04330115,118140.0,118130.0,0.69613182]
[1752915819383,0.04330115,118140.0,118130.0,0.70459671]
[1752915819599,0.04330108,118140.0,118130.0,0.70459671]
[1752915820247,0.04330108,118140.0,118130.0,0.68766686]
[1752915820248,0.05176561,118140.0,118130.0,0.68766686]
[1752915820670,0.04330108,118140.0,118130.0,0.69613182]
[1752915820836,0.04330108,118140.0,118130.0,0.70459671]
[1752915821032,0.03483669,118140.0,118130.0,0.71306153]
[1752915821248,0.04330115,118140.0,118130.0,0.50712503]
[1752915821470,0.04330115,118140.0,118130.0,0.68766686]
[1752915822102,0.04330115,118140.0,118130.0,0.67920183]
[1752915822735,0.04330115,118140.0,118130.0,0.68766686]
[1752915823458,0.04330115,118140.0,118130.0,0.67920183]
[1752915824419,0.20412786,118140.0,118130.0,0.67920183]
[1752915825156,0.20412786,118140.0,118130.0,0.68766686]
[1752915825413,0.20412786,118140.0,118130.0,0.50712503]
[1752915825672,0.20412786,118140.0,118130.0,0.68766686]
[1752915825890,0.20412786,118140.0,118130.0,0.68762686]
[1752915826160,0.19566369,118140.0,118130.0,0.67916183]